{"text_format":"1","workbook":"xlsx","n_sheets":2,"sheets":["T1","Uebersetzungen"],"not_rendered":{"charts":0,"images":0,"macros":1,"external_links":0,"defined_names":0,"comments":0,"pivot_tables":0},"unopened":[],"bounds":{"document_bytes":16777216,"sheet_cells":100000,"rows_first":2000,"rows_last":500,"rows_between":2000,"halvings":0,"cell_chars":16384,"cell_head_chars":4096},"cells_cut":0,"cells_raw":0,"read":"whole","date_system":"1900"}

{"sheet":"T1","index":0,"n_rows":42,"n_cols":6,"rows_kept":42,"cut":false,"hidden":false,"merged":[[0,0,0,1],[7,0,7,5],[9,0,10,0],[9,1,10,1],[9,2,10,2],[9,3,9,4],[9,5,10,5],[8,0,8,4],[40,0,40,5],[41,0,41,5],[29,0,29,5],[30,0,30,5],[31,0,31,5],[32,0,32,5],[33,0,33,5],[34,0,34,5],[35,0,35,5],[36,0,36,5],[37,0,37,5],[38,0,38,5],[39,0,39,5]]}
["Sprache / Langue / Lingua / Language"]
[]
[]
[]
[]
[]
[]
[{"$f":"VLOOKUP(\"<T1_Ti>\",Uebersetzungen!$B$3:$F$33,Uebersetzungen!$B$2+1,FALSE)","v":"Statistical key figures, 4th quarter 2020"}]
[{"$f":"VLOOKUP(\"<T1_UTi>\",Uebersetzungen!$B$3:$F$33,Uebersetzungen!$B$2+1,FALSE)","v":"Swiss Residential Property Price Index, IMPI"},null,null,null,null,"T 1"]
[{"$f":"VLOOKUP(\"<T1_SpaltenTitel_1>\",Uebersetzungen!$B$3:$F$33,Uebersetzungen!$B$2+1,FALSE)","v":"Total index \nand sub-indices "},{"$f":"VLOOKUP(\"<T1_SpaltenTitel_2>\",Uebersetzungen!$B$3:$F$33,Uebersetzungen!$B$2+1,FALSE)","v":"Weight in %"},{"$f":"VLOOKUP(\"<T1_SpaltenTitel_3>\",Uebersetzungen!$B$3:$F$33,Uebersetzungen!$B$2+1,FALSE)","v":"Index (Base: \nQ4 2019 = 100)"},{"$f":"VLOOKUP(\"<T1_SpaltenTitel_4>\",Uebersetzungen!$B$3:$F$33,Uebersetzungen!$B$2+1,FALSE)","v":"Change (in %) compared to"},null,{"$f":"VLOOKUP(\"<T1_SpaltenTitel_7>\",Uebersetzungen!$B$3:$F$33,Uebersetzungen!$B$2+1,FALSE)","v":"Contribution to the change compared \nto previous quarter"}]
[null,null,null,{"$f":"VLOOKUP(\"<T1_SpaltenTitel_5>\",Uebersetzungen!$B$3:$F$33,Uebersetzungen!$B$2+1,FALSE)","v":"previous quarter"},{"$f":"VLOOKUP(\"<T1_SpaltenTitel_6>\",Uebersetzungen!$B$3:$F$33,Uebersetzungen!$B$2+1,FALSE)","v":"Q4 2019 "}]
[{"$f":"VLOOKUP(\"<Zeilentitel_1>\",Uebersetzungen!$B$3:$F$33,Uebersetzungen!$B$2+1,FALSE)","v":"Total"},100,103.1292,2.2999999999999998,3.1,2.2949999999999999]
[{"$f":"VLOOKUP(\"<Zeilentitel_4>\",Uebersetzungen!$B$3:$F$33,Uebersetzungen!$B$2+1,FALSE)","v":"Type of municipality 1"},31.321000000000002,102.6234,1.2,2.6,0.39200000000000002]
[{"$f":"VLOOKUP(\"<Zeilentitel_5>\",Uebersetzungen!$B$3:$F$33,Uebersetzungen!$B$2+1,FALSE)","v":"Type of municipality 2"},18.596,103.962,2.6,4,0.49099999999999999]
[{"$f":"VLOOKUP(\"<Zeilentitel_6>\",Uebersetzungen!$B$3:$F$33,Uebersetzungen!$B$2+1,FALSE)","v":"Type of municipality 3"},9.1270000000000007,102.91930000000001,2.4,2.9,0.218]
[{"$f":"VLOOKUP(\"<Zeilentitel_7>\",Uebersetzungen!$B$3:$F$33,Uebersetzungen!$B$2+1,FALSE)","v":"Type of municipality 4"},26.117000000000001,102.8875,2.9,2.9,0.76]
[{"$f":"VLOOKUP(\"<Zeilentitel_8>\",Uebersetzungen!$B$3:$F$33,Uebersetzungen!$B$2+1,FALSE)","v":"Type of municipality 5"},14.839,103.7079,2.9,3.7,0.434]
[{"$f":"VLOOKUP(\"<Zeilentitel_2>\",Uebersetzungen!$B$3:$F$33,Uebersetzungen!$B$2+1,FALSE)","v":"SFH"},48.14,103.154,1.5,3.2,0.70899999999999996]
[{"$f":"VLOOKUP(\"<Zeilentitel_4>\",Uebersetzungen!$B$3:$F$33,Uebersetzungen!$B$2+1,FALSE)","v":"Type of municipality 1"},13.916,103.69119999999999,0.5,3.7,6.6000000000000003E-2]
[{"$f":"VLOOKUP(\"<Zeilentitel_5>\",Uebersetzungen!$B$3:$F$33,Uebersetzungen!$B$2+1,FALSE)","v":"Type of municipality 2"},7.4630000000000001,103.6537,2.1,3.7,0.157]
[{"$f":"VLOOKUP(\"<Zeilentitel_6>\",Uebersetzungen!$B$3:$F$33,Uebersetzungen!$B$2+1,FALSE)","v":"Type of municipality 3"},3.7850000000000001,101.2222,0.3,1.2,1.0999999999999999E-2]
[{"$f":"VLOOKUP(\"<Zeilentitel_7>\",Uebersetzungen!$B$3:$F$33,Uebersetzungen!$B$2+1,FALSE)","v":"Type of municipality 4"},14.036,102.4526,2.4,2.5,0.34]
[{"$f":"VLOOKUP(\"<Zeilentitel_8>\",Uebersetzungen!$B$3:$F$33,Uebersetzungen!$B$2+1,FALSE)","v":"Type of municipality 5"},8.94,103.82,1.5,3.8,0.13500000000000001]
[{"$f":"VLOOKUP(\"<Zeilentitel_3>\",Uebersetzungen!$B$3:$F$33,Uebersetzungen!$B$2+1,FALSE)","v":"CONDO"},51.86,103.1062,3.1,3.1,1.5860000000000001]
[{"$f":"VLOOKUP(\"<Zeilentitel_4>\",Uebersetzungen!$B$3:$F$33,Uebersetzungen!$B$2+1,FALSE)","v":"Type of municipality 1"},17.405000000000001,101.7697,1.9,1.8,0.32600000000000001]
[{"$f":"VLOOKUP(\"<Zeilentitel_5>\",Uebersetzungen!$B$3:$F$33,Uebersetzungen!$B$2+1,FALSE)","v":"Type of municipality 2"},11.134,104.1687,3,4.2,0.33300000000000002]
[{"$f":"VLOOKUP(\"<Zeilentitel_6>\",Uebersetzungen!$B$3:$F$33,Uebersetzungen!$B$2+1,FALSE)","v":"Type of municipality 3"},5.3419999999999996,104.12179999999999,3.9,4.0999999999999996,0.20699999999999999]
[{"$f":"VLOOKUP(\"<Zeilentitel_7>\",Uebersetzungen!$B$3:$F$33,Uebersetzungen!$B$2+1,FALSE)","v":"Type of municipality 4"},12.08,103.3927,3.5,3.4,0.42099999999999999]
[{"$f":"VLOOKUP(\"<Zeilentitel_8>\",Uebersetzungen!$B$3:$F$33,Uebersetzungen!$B$2+1,FALSE)","v":"Type of municipality 5"},5.899,103.53789999999999,5.2,3.5,0.29899999999999999]
[{"$f":"VLOOKUP(\"<Legende_1>\",Uebersetzungen!$B$3:$F$33,Uebersetzungen!$B$2+1,FALSE)","v":"Legend:"}]
[{"$f":"VLOOKUP(\"<Legende_2>\",Uebersetzungen!$B$3:$F$33,Uebersetzungen!$B$2+1,FALSE)","v":"Total - Residential property (SFH and CONDO)"}]
[{"$f":"VLOOKUP(\"<Legende_3>\",Uebersetzungen!$B$3:$F$33,Uebersetzungen!$B$2+1,FALSE)","v":"SFH - Single-family houses"}]
[{"$f":"VLOOKUP(\"<Legende_4>\",Uebersetzungen!$B$3:$F$33,Uebersetzungen!$B$2+1,FALSE)","v":"CONDO - Condominiums"}]
[{"$f":"VLOOKUP(\"<Legende_5>\",Uebersetzungen!$B$3:$F$33,Uebersetzungen!$B$2+1,FALSE)","v":"Type of municipality 1 - Urban municipality of a large agglomeration"}]
[{"$f":"VLOOKUP(\"<Legende_6>\",Uebersetzungen!$B$3:$F$33,Uebersetzungen!$B$2+1,FALSE)","v":"Type of municipality 2 - Urban  municipality of a medium-sized agglomeration"}]
[{"$f":"VLOOKUP(\"<Legende_7>\",Uebersetzungen!$B$3:$F$33,Uebersetzungen!$B$2+1,FALSE)","v":"Type of municipality 3 - Urban municipality of a small or outside agglomeration"}]
[{"$f":"VLOOKUP(\"<Legende_8>\",Uebersetzungen!$B$3:$F$33,Uebersetzungen!$B$2+1,FALSE)","v":"Type of municipality 4 - Intermediate municipality"}]
[{"$f":"VLOOKUP(\"<Legende_9>\",Uebersetzungen!$B$3:$F$33,Uebersetzungen!$B$2+1,FALSE)","v":"Type of municipality 5 - Rural municipality"}]
[]
[{"$f":"VLOOKUP(\"<Quelle>\",Uebersetzungen!$B$3:$F$33,Uebersetzungen!$B$2+1,FALSE)","v":"Sources: FSO - Swiss Residential Property Price Index, IMPI"}]
[{"$f":"VLOOKUP(\"<CopyRight>\",Uebersetzungen!$B$3:$F$33,Uebersetzungen!$B$2+1,FALSE)","v":"© FSO 2021"}]
[{"$f":"VLOOKUP(\"<Auskunft>\",Uebersetzungen!$B$3:$F$33,Uebersetzungen!$B$2+1,FALSE)","v":"Information: Federal Statistical Office (FSO), IMPI@bfs.admin.ch, Tel. +41 58 463 60 69 "}]

{"sheet":"Uebersetzungen","index":1,"n_rows":33,"n_cols":6,"rows_kept":33,"cut":false,"hidden":true,"merged":[]}
["Tabelle","Code","DE","FR","IT","EN"]
["Sprache",4]
["T1","<T1_Ti>","Statistische Kennzahlen, 4. Quartal 2020 ","Les chiffres statistiques clés, 4e trimestre 2020","Dati statistici chiave, 4° trimestre 2020","Statistical key figures, 4th quarter 2020"]
[null,"<T1_UTi>","Schweizerischer Wohnimmobilienpreisindex, IMPI ","Indice suisse des prix de l'immobilier résidentiel, IMPI","Indice svizzero dei prezzi degli immobili residenziali, IMPI","Swiss Residential Property Price Index, IMPI"]
[null,"<T1_SpaltenTitel_1>","Totalindex \nund Subindizes","Indice total \net sous-indices","Indice totale \ne sottoindici","Total index \nand sub-indices "]
[null,"<T1_SpaltenTitel_2>","Gewicht in %","poids en %","pesi in %","Weight in %"]
[null,"<T1_SpaltenTitel_3>","Index (Basis: \nQ4 2019 = 100)","Indice (Base: \n4e trim. 2019= 100)","Indice (base: \n4° trim. 2019= 100)","Index (Base: \nQ4 2019 = 100)"]
[null,"<T1_SpaltenTitel_4>","Veränderung (in %) zum ","Variation (en %) par rapport au","Variazione (in %) rispetto al ","Change (in %) compared to"]
[null,"<T1_SpaltenTitel_5>","Vorquartal","trim. précédent","trim. precedente","previous quarter"]
[null,"<T1_SpaltenTitel_6>","Q4 2019 ","4e trim. 2019","4° trim. 2019 ","Q4 2019 "]
[null,"<T1_SpaltenTitel_7>","Beitrag zur Veränderung gegenüber Vorquartal","Contribution à la variation par rapport au trim. précédent","Contributo alla variazione rispetto \nal trim. precedente","Contribution to the change compared \nto previous quarter"]
[]
[null,"<Zeilentitel_1>","Total ","Total ","Totale ","Total"]
[null,"<Zeilentitel_2>","EFH","MI","CU","SFH"]
[null,"<Zeilentitel_3>","EGW","PPE","APP","CONDO"]
[null,"<Zeilentitel_4>","GemeindeTyp 1","Type de communes 1","Tipo di Comune 1","Type of municipality 1"]
[null,"<Zeilentitel_5>","GemeindeTyp 2","Type de communes 2","Tipo di Comune 2","Type of municipality 2"]
[null,"<Zeilentitel_6>","GemeindeTyp 3","Type de communes 3","Tipo di Comune 3","Type of municipality 3"]
[null,"<Zeilentitel_7>","GemeindeTyp 4","Type de communes 4","Tipo di Comune 4","Type of municipality 4"]
[null,"<Zeilentitel_8>","GemeindeTyp 5","Type de communes 5","Tipo di Comune 5","Type of municipality 5"]
[]
[null,"<Legende_1>","Legende:","Légende:","Legenda:","Legend:"]
[null,"<Legende_2>","Total - Wohneigentum (EFH und EGW)","Total - Logements en propriété (MI et PPE)","Totale - Proprietà residenziale (CU e APP)","Total - Residential property (SFH and CONDO)"]
[null,"<Legende_3>","EFH - Einfamilienhäuser","MI - Maisons individuelles","CU - Case unifamiliari","SFH - Single-family houses"]
[null,"<Legende_4>","EGW - Eigentumswohnungen ","PPE - Appartements en propriété","APP - Appartementi di proprietà","CONDO - Condominiums"]
[null,"<Legende_5>","GemeindeTyp 1 - Städtische Gemeinde einer grossen Agglomeration","Type de communes 1 - Commune urbaine d'une grande agglomération ","Tipo di Comune 1 - Comune urbano di un grande agglomerato","Type of municipality 1 - Urban municipality of a large agglomeration"]
[null,"<Legende_6>","GemeindeTyp 2 - Städtische Gemeinde einer mittelgrossen Agglomeration","Type de communes 2 - Commune urbaine d'une agglomération moyenne","Tipo di Comune 2 - Comune urbano di un agglomerato medio","Type of municipality 2 - Urban  municipality of a medium-sized agglomeration"]
[null,"<Legende_7>","GemeindeTyp 3 - Städtische Gemeinde einer kleinen oder ausserhalb einer Agglomeration","Type de communes 3 - Commune urbaine d'une petite ou hors agglomération","Tipo di Comune 3 - Comune urbano di un piccolo/fuori agglomerato","Type of municipality 3 - Urban municipality of a small or outside agglomeration"]
[null,"<Legende_8>","GemeindeTyp 4 - Intermediäre Gemeinde ","Type de communes 4 - Commune intermédiaire ","Tipo di Comune 4 - Comune intermedio ","Type of municipality 4 - Intermediate municipality"]
[null,"<Legende_9>","GemeindeTyp 5 - Ländliche Gemeinde","Type de communes 5 - Commune rurale","Tipo di Comune 5 - Comune rurale","Type of municipality 5 - Rural municipality"]
[null,"<Quelle>","Quelle: BFS - Schweizerischer Wohnimmobilienpreisindex, IMPI","Sources: OFS - Indice suisse des prix de l'immobilier résidentiel, IMPI","Fonti: UST - Indice svizzero dei prezzi degli immobili residenziali, IMPI","Sources: FSO - Swiss Residential Property Price Index, IMPI"]
[null,"<CopyRight>","© BFS 2021","© OFS 2021","© UST 2021","© FSO 2021"]
[null,"<Auskunft>","Auskunft: Bundesamt für Statistik (BFS), IMPI@bfs.admin.ch, Tel. +41 58 463 60 69","Renseignements: Office fédéral de la statistique (OFS), IMPI@bfs.admin.ch, Tel. +41 58 463 60 69","Informazioni: Ufficio federale di statistica (UST), IMPI@bfs.admin.ch, tel. +41 58 463 60 69","Information: Federal Statistical Office (FSO), IMPI@bfs.admin.ch, Tel. +41 58 463 60 69 "]